[Event "Paul Kerese Mälestusfestival 2022 Välkturniir"]
[Site "Paul Kerese Mälestusfestival 2022 Kiirturniir"]
[Date "????.??.??"]
[Round "7.6"]
[White "Kraini, Juri"]
[Black "Protassov, Vlad"]
[Result "0-1"]
[TimeControl "3 min + 2 sek iga käigu eest"]
[WhiteElo "1692"]
[BlackElo "1816"]

1. e4 {[%clk 00:03:03]} c6 {[%clk 00:03:04]} 2. Bc4 {[%clk 00:03:03]} {[%emt
00:00:02]} d5 {[%clk 00:03:05]} {[%emt 00:00:01]} 3. Bb3 {[%clk 00:03:04]} dxe4
{[%clk 00:03:01]} {[%emt 00:00:07]} 4. Qh5 {[%clk 00:03:04]} {[%emt 00:00:02]}
g6 {[%clk 00:02:56]} {[%emt 00:00:07]} 5. Qh4 {[%clk 00:03:04]} {[%emt
00:00:02]} Nf6 {[%clk 00:02:54]} {[%emt 00:00:04]} 6. Nc3 {[%clk 00:03:05]}
{[%emt 00:00:01]} Bf5 {[%clk 00:02:39]} {[%emt 00:00:18]} 7. f3 {[%clk
00:03:05]} {[%emt 00:00:02]} exf3 {[%clk 00:02:35]} {[%emt 00:00:05]} 8. Nxf3
{[%clk 00:03:06]} {[%emt 00:00:01]} Bg7 {[%clk 00:02:27]} {[%emt 00:00:10]} 9.
d3 {[%clk 00:03:06]} {[%emt 00:00:02]} Nbd7 {[%clk 00:02:07]} {[%emt 00:00:22]}
10. Bh6 {[%clk 00:03:06]} {[%emt 00:00:02]} O-O {[%clk 00:02:00]} {[%emt
00:00:10]} 11. O-O-O {[%clk 00:02:56]} {[%emt 00:00:11]} Nc5 {[%clk 00:01:48]}
{[%emt 00:00:14]} 12. h3 {[%clk 00:02:56]} {[%emt 00:00:03]} Nxb3+ {[%clk
00:01:39]} {[%emt 00:00:12]} 13. axb3 {[%clk 00:02:55]} {[%emt 00:00:03]} e5
{[%clk 00:00:34]} {[%emt 00:01:07]} 14. Bxg7 {[%clk 00:02:52]} {[%emt
00:00:04]} Kxg7 {[%clk 00:00:34]} {[%emt 00:00:02]} 15. Nxe5 {[%clk 00:02:51]}
{[%emt 00:00:03]} Re8 {[%clk 00:00:24]} {[%emt 00:00:12]} 16. Rhe1 {[%clk
00:02:51]} {[%emt 00:00:02]} Qd6 {[%clk 00:00:15]} {[%emt 00:00:10]} 17. d4
{[%clk 00:02:49]} {[%emt 00:00:04]} Nd5 {[%clk 00:00:13]} {[%emt 00:00:05]} 18.
Nc4 {[%clk 00:02:48]} {[%emt 00:00:03]} Qf6 {[%clk 00:00:13]} {[%emt 00:00:02]}
19. Qf2 {[%clk 00:02:47]} {[%emt 00:00:03]} Nxc3 {[%clk 00:00:08]} {[%emt
00:00:08]} 20. bxc3 {[%clk 00:02:48]} {[%emt 00:00:01]} a5 {[%clk 00:00:08]}
{[%emt 00:00:02]} 21. Rf1 {[%clk 00:02:45]} {[%emt 00:00:05]} Qg5+ {[%clk
00:00:08]} {[%emt 00:00:02]} 22. Kb2 {[%clk 00:02:45]} {[%emt 00:00:01]} a4
{[%clk 00:00:09]} {[%emt 00:00:02]} 23. b4 {[%clk 00:02:46]} {[%emt 00:00:01]}
Be6 {[%clk 00:00:09]} {[%emt 00:00:02]} 24. h4 {[%clk 00:02:46]} {[%emt
00:00:02]} Qd5 {[%clk 00:00:10]} {[%emt 00:00:01]} 25. Qf6+ {[%clk 00:02:12]}
{[%emt 00:00:36]} Kg8 {[%clk 00:00:10]} {[%emt 00:00:01]} 26. Ne3 {[%clk
00:02:13]} {[%emt 00:00:01]} a3+ {[%clk 00:00:11]} {[%emt 00:00:02]} 27. Kc1
{[%clk 00:02:13]} {[%emt 00:00:02]} Qa2 {[%clk 00:00:06]} {[%emt 00:00:06]} 28.
Kd2 {[%clk 00:02:13]} {[%emt 00:00:01]} Qb2 {[%clk 00:00:04]} {[%emt 00:00:05]}
29. Nf5 {[%clk 00:02:06]} {[%emt 00:00:09]} Bxf5 {[%clk 00:00:04]} {[%emt
00:00:02]} 30. Rxf5 {[%clk 00:02:06]} {[%emt 00:00:01]} gxf5 {[%clk 00:00:04]}
{[%emt 00:00:02]} 31. Qg5+ {[%clk 00:02:07]} Kf8 {[%clk 00:00:04]} {[%emt
00:00:02]} 32. Qh6+ {[%clk 00:02:05]} {[%emt 00:00:05]} Ke7 {[%clk 00:00:05]}
{[%emt 00:00:01]} 33. Re1+ {[%clk 00:02:04]} {[%emt 00:00:02]} Kd7 {[%clk
00:00:06]} {[%emt 00:00:01]} 34. Rf1 {[%clk 00:02:02]} {[%emt 00:00:04]} Qa2
{[%clk 00:00:06]} {[%emt 00:00:03]} 35. Rxf5 {[%clk 00:01:58]} {[%emt
00:00:05]} Qe6 {[%clk 00:00:07]} {[%emt 00:00:01]} 36. Qf4 {[%clk 00:01:44]}
{[%emt 00:00:17]} Qe1+ {[%clk 00:00:06]} {[%emt 00:00:03]} 37. Kd3 {[%clk
00:01:45]} Qe2# {[%clk 00:00:07]} {[%emt 00:00:01]} 0-1

[Event "Paul Kerese Mälestusfestival 2022 Välkturniir"]
[Site "Paul Kerese Mälestusfestival 2022 Kiirturniir"]
[Date "????.??.??"]
[Round "7.7"]
[White "Olde, Karl Erik"]
[Black "Olde, Margareth"]
[Result "0-1"]
[TimeControl "3 min + 2 sek iga käigu eest"]
[BlackTitle "WIM"]
[WhiteElo "1768"]
[BlackElo "1971"]

1. d4 {[%emt 00:01:55]} d5 2. c4 e6 3. Nf3 {[%clk 00:03:06]} a6 {[%clk
00:03:07]} {[%emt 00:00:01]} 4. e3 {[%clk 00:03:06]} {[%emt 00:00:02]} dxc4
{[%emt 00:00:02]} 5. Bxc4 b5 6. Be2 {[%clk 00:03:07]} {[%emt 00:00:02]} Nf6
{[%clk 00:03:10]} {[%emt 00:00:02]} 7. O-O {[%clk 00:03:07]} {[%emt 00:00:02]}
Nbd7 {[%clk 00:03:07]} {[%emt 00:00:05]} 8. a3 {[%clk 00:03:03]} {[%emt
00:00:06]} Bb7 {[%clk 00:03:08]} 9. b4 {[%clk 00:03:02]} {[%emt 00:00:03]} Bd6
{[%clk 00:03:02]} {[%emt 00:00:08]} 10. Nc3 {[%clk 00:03:00]} {[%emt 00:00:04]}
O-O {[%clk 00:03:02]} {[%emt 00:00:02]} 11. Bb2 {[%clk 00:02:58]} {[%emt
00:00:04]} Nb6 {[%clk 00:03:03]} 12. Qb3 {[%clk 00:02:51]} {[%emt 00:00:09]}
Nbd5 {[%clk 00:02:53]} {[%emt 00:00:13]} 13. e4 {[%clk 00:02:43]} {[%emt
00:00:10]} Nxc3 {[%clk 00:02:53]} {[%emt 00:00:02]} 14. Qxc3 {[%clk 00:02:22]}
{[%emt 00:00:22]} Nxe4 {[%clk 00:02:52]} {[%emt 00:00:03]} 15. Qe3 {[%clk
00:02:22]} {[%emt 00:00:02]} h6 {[%clk 00:02:39]} {[%emt 00:00:16]} 16. Rfd1
{[%clk 00:02:22]} {[%emt 00:00:02]} Ng5 {[%clk 00:02:27]} {[%emt 00:00:14]} 17.
Ne5 {[%clk 00:02:13]} {[%emt 00:00:11]} Bd5 {[%clk 00:01:37]} {[%emt 00:00:52]}
18. f4 {[%clk 00:01:37]} {[%emt 00:00:38]} Ne4 {[%clk 00:01:36]} {[%emt
00:00:03]} 19. Bf3 {[%clk 00:01:36]} {[%emt 00:00:03]} Nf6 {[%clk 00:01:37]} 20.
Rac1 {[%clk 00:01:26]} {[%emt 00:00:11]} Bxf3 {[%clk 00:01:33]} {[%emt
00:00:06]} 21. Qxf3 {[%clk 00:01:20]} {[%emt 00:00:08]} Nd5 {[%clk 00:01:35]}
22. Rc2 {[%clk 00:01:09]} {[%emt 00:00:14]} Re8 {[%clk 00:01:27]} {[%emt
00:00:09]} 23. Rdc1 {[%clk 00:01:04]} {[%emt 00:00:06]} Qf6 {[%clk 00:01:28]}
24. g3 {[%clk 00:00:54]} {[%emt 00:00:13]} Qf5 {[%clk 00:01:14]} {[%emt
00:00:16]} 25. Rc6 {[%clk 00:00:46]} {[%emt 00:00:10]} h5 {[%clk 00:01:11]}
{[%emt 00:00:05]} 26. Kg2 {[%clk 00:00:29]} {[%emt 00:00:20]} Rad8 {[%clk
00:00:52]} {[%emt 00:00:21]} 27. Rxa6 {[%clk 00:00:27]} {[%emt 00:00:04]} Bxe5
{[%clk 00:00:51]} {[%emt 00:00:03]} 28. fxe5 {[%clk 00:00:23]} {[%emt
00:00:06]} Qg5 {[%clk 00:00:15]} {[%emt 00:00:38]} 29. Rf1 {[%clk 00:00:23]}
{[%emt 00:00:02]} Ne3+ {[%clk 00:00:16]} {[%emt 00:00:01]} 30. Kg1 {[%clk
00:00:15]} {[%emt 00:00:10]} Nxf1 {[%clk 00:00:16]} 31. Kxf1 {[%clk 00:00:17]}
h4 {[%clk 00:00:14]} {[%emt 00:00:05]} 32. Ra7 {[%clk 00:00:17]} {[%emt
00:00:01]} Rd7 {[%clk 00:00:14]} {[%emt 00:00:02]} 33. Rb7 {[%clk 00:00:15]}
{[%emt 00:00:04]} hxg3 {[%clk 00:00:14]} {[%emt 00:00:02]} 34. hxg3 {[%clk
00:00:15]} {[%emt 00:00:01]} Qd2 {[%clk 00:00:15]} {[%emt 00:00:01]} 35. Qe2
{[%clk 00:00:13]} {[%emt 00:00:05]} Qxe2+ 36. Kxe2 {[%clk 00:00:14]} Rd5 {[%clk
00:00:07]} {[%emt 00:00:02]} 37. Rxc7 {[%clk 00:00:14]} {[%emt 00:00:02]} f6
{[%clk 00:00:09]} 38. Rc5 {[%clk 00:00:07]} {[%emt 00:00:08]} fxe5 {[%clk
00:00:09]} {[%emt 00:00:02]} 39. dxe5 {[%clk 00:00:08]} Red8 {[%clk 00:00:11]}
{[%emt 00:00:01]} 40. Rc6 {[%clk 00:00:09]} Rd2+ {[%clk 00:00:12]} {[%emt
00:00:01]} 41. Ke3 {[%clk 00:00:10]} Rxb2 {[%clk 00:00:13]} {[%emt 00:00:01]}
42. Rxe6 {[%clk 00:00:10]} {[%emt 00:00:01]} Rb3+ {[%clk 00:00:14]} 43. Ke4
{[%clk 00:00:11]} {[%emt 00:00:02]} Rxa3 {[%clk 00:00:15]} {[%emt 00:00:02]} 44.
Rb6 {[%clk 00:00:11]} {[%emt 00:00:01]} Rxg3 {[%clk 00:00:15]} {[%emt
00:00:02]} 45. Rxb5 {[%clk 00:00:12]} Rg4+ {[%clk 00:00:14]} {[%emt 00:00:02]}
46. Kf5 {[%clk 00:00:14]} Rgd4 {[%clk 00:00:13]} {[%emt 00:00:03]} 47. e6
{[%clk 00:00:14]} {[%emt 00:00:02]} R4d5+ {[%clk 00:00:13]} {[%emt 00:00:02]}
0-1

[Event "Paul Kerese Mälestusfestival 2022 Välkturniir"]
[Site "Paul Kerese Mälestusfestival 2022 Kiirturniir"]
[Date "????.??.??"]
[Round "7.8"]
[White "Mikko, Rondo"]
[Black "Dzjuba, Jegor"]
[Result "1-0"]
[TimeControl "3 min + 2 sek iga käigu eest"]
[WhiteElo "1933"]
[BlackElo "1356"]

1. Nf3 {[%clk 00:03:02]} {[%emt 00:00:02]} d5 {[%clk 00:03:02]} {[%emt
00:00:02]} 2. g3 {[%clk 00:03:03]} c5 {[%clk 00:03:03]} 3. Bg2 {[%clk
00:03:04]} Nc6 {[%clk 00:03:04]} {[%emt 00:00:01]} 4. O-O {[%clk 00:03:05]} e5
{[%clk 00:03:05]} {[%emt 00:00:02]} 5. d3 {[%clk 00:03:06]} Nf6 {[%clk
00:03:03]} {[%emt 00:00:04]} 6. Nbd2 {[%clk 00:03:07]} Be7 {[%clk 00:03:04]}
{[%emt 00:00:02]} 7. e4 {[%clk 00:03:08]} dxe4 {[%clk 00:02:57]} {[%emt
00:00:09]} 8. dxe4 {[%clk 00:03:05]} {[%emt 00:00:05]} O-O {[%clk 00:02:53]}
{[%emt 00:00:07]} 9. c3 {[%clk 00:03:06]} {[%emt 00:00:01]} Qc7 {[%clk
00:02:35]} {[%emt 00:00:20]} 10. Qc2 {[%clk 00:03:07]} {[%emt 00:00:01]} h6
{[%clk 00:02:30]} {[%emt 00:00:07]} 11. Nc4 {[%clk 00:03:05]} {[%emt 00:00:04]}
Be6 {[%clk 00:02:30]} {[%emt 00:00:02]} 12. Ne3 {[%clk 00:03:05]} {[%emt
00:00:01]} Rfd8 {[%clk 00:02:19]} {[%emt 00:00:14]} 13. Nf5 {[%clk 00:02:51]}
{[%emt 00:00:16]} Bxf5 {[%clk 00:02:00]} {[%emt 00:00:21]} 14. exf5 {[%clk
00:02:52]} {[%emt 00:00:02]} c4 {[%clk 00:01:07]} {[%emt 00:00:55]} 15. Re1
{[%clk 00:02:50]} {[%emt 00:00:04]} Rd3 {[%clk 00:01:00]} {[%emt 00:00:10]} 16.
Nd2 {[%clk 00:02:44]} {[%emt 00:00:08]} b5 {[%clk 00:00:55]} {[%emt 00:00:08]}
17. Ne4 {[%clk 00:02:40]} {[%emt 00:00:05]} Rad8 {[%clk 00:00:49]} {[%emt
00:00:08]} 18. Nxf6+ {[%clk 00:02:40]} {[%emt 00:00:02]} Bxf6 {[%clk 00:00:48]}
{[%emt 00:00:03]} 19. Be4 {[%clk 00:02:42]} R3d6 {[%clk 00:00:44]} {[%emt
00:00:06]} 20. Be3 {[%clk 00:02:43]} Ne7 {[%clk 00:00:40]} {[%emt 00:00:06]} 21.
a4 {[%clk 00:02:34]} {[%emt 00:00:12]} a6 {[%clk 00:00:36]} {[%emt 00:00:05]}
22. axb5 {[%clk 00:02:34]} {[%emt 00:00:01]} axb5 {[%clk 00:00:36]} {[%emt
00:00:02]} 23. Ra7 {[%clk 00:02:35]} {[%emt 00:00:02]} Qb8 {[%clk 00:00:34]}
{[%emt 00:00:03]} 24. Rea1 {[%clk 00:02:34]} {[%emt 00:00:04]} Nd5 {[%clk
00:00:28]} {[%emt 00:00:08]} 25. Bc5 {[%clk 00:02:25]} {[%emt 00:00:11]} R6d7
{[%clk 00:00:13]} {[%emt 00:00:17]} 26. Rxd7 {[%clk 00:02:23]} {[%emt
00:00:04]} Rxd7 {[%clk 00:00:14]} {[%emt 00:00:02]} 27. b3 {[%clk 00:01:55]}
{[%emt 00:00:29]} Kh7 {[%clk 00:00:12]} {[%emt 00:00:03]} 28. bxc4 {[%clk
00:01:41]} {[%emt 00:00:16]} bxc4 {[%clk 00:00:14]} 29. Rb1 {[%clk 00:01:39]}
{[%emt 00:00:04]} Qc7 {[%clk 00:00:11]} {[%emt 00:00:04]} 30. Bb4 {[%clk
00:01:29]} {[%emt 00:00:12]} Nxb4 {[%clk 00:00:06]} {[%emt 00:00:07]} 31. Rxb4
{[%clk 00:01:13]} {[%emt 00:00:18]} Qc5 {[%clk 00:00:08]} 32. Qe2 {[%clk
00:01:10]} {[%emt 00:00:05]} Rc7 {[%clk 00:00:09]} 33. Kg2 {[%clk 00:01:09]}
{[%emt 00:00:02]} Kg8 {[%clk 00:00:03]} {[%emt 00:00:08]} 34. Rb8+ {[%clk
00:01:05]} {[%emt 00:00:06]} Kh7 {[%clk 00:00:04]} 35. Qa2 {[%clk 00:01:03]}
{[%emt 00:00:04]} Rc8 {[%clk 00:00:04]} {[%emt 00:00:02]} 36. Rb4 {[%clk
00:00:53]} {[%emt 00:00:12]} h5 {[%clk 00:00:04]} {[%emt 00:00:02]} 37. h4
{[%clk 00:00:48]} {[%emt 00:00:07]} Kh6 {[%clk 00:00:05]} {[%emt 00:00:01]} 38.
Qd2+ {[%clk 00:00:41]} {[%emt 00:00:08]} Kh7 {[%clk 00:00:05]} {[%emt
00:01:20]} 39. Rb7 {[%clk 00:01:31]} {[%emt 00:00:11]} Rc7 {[%clk 00:00:05]}
{[%emt 00:00:02]} 40. Rb4 {[%clk 00:01:31]} {[%emt 00:00:02]} Rc8 {[%clk
00:00:06]} 41. Rb1 {[%clk 00:01:21]} {[%emt 00:00:12]} Rd8 {[%clk 00:00:07]} 42.
Qe2 {[%clk 00:01:18]} {[%emt 00:00:05]} Rd7 {[%clk 00:00:05]} {[%emt 00:00:04]}
43. Qxh5+ {[%clk 00:01:17]} {[%emt 00:00:02]} Kg8 {[%clk 00:00:06]} 44. Qe2
{[%clk 00:01:06]} {[%emt 00:00:13]} Rd8 {[%clk 00:00:06]} {[%emt 00:00:02]} 45.
Rh1 {[%clk 00:01:05]} {[%emt 00:00:02]} Rc8 {[%clk 00:00:04]} {[%emt 00:00:04]}
46. g4 {[%clk 00:01:06]} {[%emt 00:00:01]} Qa3 {[%clk 00:00:05]} {[%emt
00:00:01]} 47. g5 {[%clk 00:01:06]} {[%emt 00:00:02]} Bd8 {[%clk 00:00:04]}
{[%emt 00:00:03]} 48. Rh3 {[%clk 00:01:03]} {[%emt 00:00:04]} Bb6 {[%clk
00:00:04]} {[%emt 00:00:03]} 49. f6 {[%clk 00:01:01]} {[%emt 00:00:04]} g6
{[%clk 00:00:03]} {[%emt 00:00:03]} 50. h5 {[%clk 00:01:00]} {[%emt 00:00:02]}
gxh5 {[%clk 00:00:03]} {[%emt 00:00:03]} 51. Qxh5 {[%clk 00:00:57]} {[%emt
00:00:05]} Qf8 {[%clk 00:03:02]} {[%emt 00:00:03]} 52. Qh7# 1-0

[Event "Paul Kerese Mälestusfestival 2022 Välkturniir"]
[Site "Paul Kerese Mälestusfestival 2022 Kiirturniir"]
[Date "????.??.??"]
[Round "8.1"]
[White "Krilovs, Nikolajs"]
[Black "Agrest, Evgenij"]
[Result "0-1"]
[TimeControl "3 min + 2 sek iga käigu eest"]
[BlackTitle "GM"]
[WhiteElo "1971"]
[BlackElo "2574"]

1. e4 {[%clk 00:03:02]} {[%emt 00:00:02]} c6 {[%clk 00:03:03]} {[%emt
00:00:02]} 2. d4 {[%clk 00:03:02]} {[%emt 00:00:02]} d5 {[%clk 00:03:04]}
{[%emt 00:00:01]} 3. e5 {[%clk 00:03:02]} {[%emt 00:00:02]} c5 {[%clk
00:03:05]} {[%emt 00:00:01]} 4. c3 {[%clk 00:03:03]} {[%emt 00:00:02]} cxd4
{[%clk 00:03:03]} {[%emt 00:00:04]} 5. cxd4 {[%clk 00:03:03]} {[%emt 00:00:01]}
Nc6 {[%clk 00:03:04]} 6. Nc3 {[%clk 00:02:44]} {[%emt 00:00:21]} Bf5 {[%clk
00:03:01]} {[%emt 00:00:05]} 7. Bb5 {[%clk 00:02:43]} {[%emt 00:00:04]} e6
{[%clk 00:02:58]} {[%emt 00:00:04]} 8. Nge2 {[%clk 00:02:37]} {[%emt 00:00:08]}
Nge7 {[%clk 00:02:58]} {[%emt 00:00:03]} 9. O-O {[%clk 00:02:36]} {[%emt
00:00:03]} a6 {[%clk 00:02:59]} {[%emt 00:00:01]} 10. Bd3 {[%clk 00:02:36]}
{[%emt 00:00:02]} Qb6 {[%clk 00:02:53]} {[%emt 00:00:07]} 11. Na4 {[%clk
00:02:24]} {[%emt 00:00:15]} Qa7 {[%clk 00:02:50]} {[%emt 00:00:05]} 12. Nc5
{[%clk 00:02:12]} {[%emt 00:00:14]} Bxd3 {[%clk 00:02:35]} {[%emt 00:00:17]} 13.
Qxd3 {[%clk 00:01:57]} {[%emt 00:00:17]} Nxe5 {[%clk 00:02:24]} {[%emt
00:00:13]} 14. Qb3 {[%clk 00:01:56]} {[%emt 00:00:02]} N7c6 {[%clk 00:02:20]}
{[%emt 00:00:06]} 15. Qxb7 {[%clk 00:01:45]} {[%emt 00:00:13]} Qxb7 {[%clk
00:02:20]} {[%emt 00:00:02]} 16. Nxb7 {[%clk 00:01:46]} {[%emt 00:00:02]} Nd7
{[%clk 00:02:05]} {[%emt 00:00:17]} 17. Be3 {[%clk 00:01:29]} {[%emt 00:00:19]}
Rb8 {[%clk 00:01:53]} {[%emt 00:00:14]} 18. Rac1 {[%clk 00:01:29]} {[%emt
00:00:02]} Na7 {[%clk 00:01:32]} {[%emt 00:00:23]} 19. Nc5 {[%clk 00:01:20]}
{[%emt 00:00:12]} Rxb2 {[%clk 00:01:26]} {[%emt 00:00:08]} 20. Nf4 {[%clk
00:01:08]} {[%emt 00:00:13]} Bxc5 {[%clk 00:01:23]} {[%emt 00:00:05]} 21. dxc5
{[%clk 00:01:09]} {[%emt 00:00:02]} Nc6 {[%clk 00:01:21]} {[%emt 00:00:04]} 22.
Rb1 {[%clk 00:01:04]} {[%emt 00:00:06]} Rxb1 {[%clk 00:01:19]} {[%emt
00:00:03]} 23. Rxb1 {[%clk 00:01:05]} {[%emt 00:00:02]} Ke7 {[%clk 00:01:14]}
{[%emt 00:00:06]} 24. Nd3 {[%clk 00:00:59]} {[%emt 00:00:09]} f6 {[%clk
00:01:06]} {[%emt 00:00:10]} 25. f4 {[%clk 00:00:58]} {[%emt 00:00:03]} Rb8
{[%clk 00:01:06]} {[%emt 00:00:02]} 26. Rxb8 {[%clk 00:00:56]} {[%emt
00:00:04]} Ndxb8 {[%clk 00:01:07]} {[%emt 00:00:01]} 27. Kf2 {[%clk 00:00:54]}
{[%emt 00:00:04]} e5 {[%clk 00:01:04]} {[%emt 00:00:04]} 28. fxe5 {[%clk
00:00:53]} {[%emt 00:00:03]} fxe5 {[%clk 00:01:05]} 29. Kg3 {[%clk 00:00:50]}
{[%emt 00:00:05]} Ke6 {[%clk 00:01:06]} 30. Kg4 {[%clk 00:00:49]} {[%emt
00:00:04]} Nd7 {[%clk 00:01:04]} {[%emt 00:00:04]} 31. a3 {[%clk 00:00:42]}
{[%emt 00:00:09]} d4 {[%clk 00:01:04]} {[%emt 00:00:01]} 32. Bd2 {[%clk
00:00:42]} {[%emt 00:00:02]} Kd5 {[%clk 00:01:05]} 33. Nb4+ {[%clk 00:00:42]}
{[%emt 00:00:02]} Nxb4 {[%clk 00:01:04]} {[%emt 00:00:04]} 34. axb4 {[%clk
00:00:42]} {[%emt 00:00:02]} Nb8 {[%clk 00:01:03]} {[%emt 00:00:03]} 35. h4
{[%clk 00:00:30]} {[%emt 00:00:14]} Nc6 {[%clk 00:01:03]} {[%emt 00:00:02]} 36.
h5 {[%clk 00:00:31]} {[%emt 00:00:01]} e4 {[%clk 00:01:02]} {[%emt 00:00:03]}
37. Kf5 {[%clk 00:00:27]} {[%emt 00:00:06]} e3 {[%clk 00:01:02]} {[%emt
00:00:02]} 38. Be1 {[%clk 00:00:27]} {[%emt 00:00:02]} d3 {[%clk 00:01:03]}
{[%emt 00:00:01]} 0-1